fUST/lending_fUST_20250206
["ID","MTS","AMOUNT","RATE_DAILY","PERIOD"]
[351812604,1738797061768,-1162.52,0.00014109,2]
[351812605,1738797061778,-500.0,0.00014109,2]
[351812606,1738797061788,-889.48,0.00014109,2]
[351812607,1738797061798,-505.39,0.00014109,2]
[351812608,1738797061808,-500.0,0.00014109,2]
[351812609,1738797061818,-707.61,0.00014109,2]
[351812610,1738797061827,-500.0,0.00014109,2]
[351812611,1738797061837,-500.0,0.00014109,2]
[351812612,1738797061846,-500.0,0.00014109,2]
[351812613,1738797061856,-902.96,0.00014109,2]
[351812614,1738797061865,-3202.02,0.00014109,2]
[351812615,1738797061874,-708.73,0.00014109,2]
[351812616,1738797061883,-500.0,0.00014109,2]
[351812617,1738797061893,-500.0,0.00014109,2]
[351812618,1738797061902,-500.0,0.00014109,2]
[351812619,1738797061912,-1346.35,0.00014109,2]
[351812620,1738797061922,-1043.67,0.00014109,2]
[351812621,1738797061935,-2916.69,0.00014109,2]
[351812622,1738797061944,-685.84,0.00014109,2]
[351812623,1738797061953,-500.0,0.00014109,2]
[351812624,1738797061963,-2625.97,0.00014109,2]
[351812625,1738797061973,-500.0,0.00014109,2]
[351812626,1738797061982,-6073.71,0.00014109,2]
[351812627,1738797061991,-2814.79,0.00014109,2]
[351812628,1738797062001,-419.697082,0.00014109,2]
[351812629,1738797062010,-419.697082,0.00014109,2]
[351812630,1738797062019,-500.0,0.00014109,2]
[351812631,1738797062029,-500.0,0.00014109,2]
[351812632,1738797062038,-1619.65,0.00014109,2]
[351812633,1738797062047,-419.697082,0.00014109,2]
[351812634,1738797062057,-419.697082,0.00014109,2]
[351812635,1738797062066,-500.0,0.00014109,2]
[351812636,1738797062076,-500.0,0.00014109,2]
[351812637,1738797062085,-2313.67,0.00014109,2]
[351812638,1738797062096,-199.342038,0.00014109,2]
[351812639,1738797062106,-199.342038,0.00014109,2]
[351812640,1738797062116,-500.0,0.00014109,2]
[351812641,1738797062125,-4999.56,0.00014109,2]
[351812642,1738797062135,-199.342038,0.00014109,2]
[351812643,1738797062144,-199.342038,0.00014109,2]
[351812644,1738797062154,-531.8,0.00014109,2]
[351812645,1738797062163,-657.87,0.00014109,2]
[351812646,1738797062173,-500.0,0.00014109,2]
[351812647,1738797062183,-500.0,0.00014109,2]
[351812648,1738797062192,-1061.98,0.00014109,2]
[351812649,1738797062202,-644.18,0.00014109,2]
[351812650,1738797062212,-916.39,0.00014109,2]
[351812651,1738797062221,-500.0,0.00014109,2]
[351812652,1738797062231,-500.0,0.00014109,2]
[351812653,1738797062241,-7607.54,0.00014109,2]
[351812654,1738797062251,-2418.94,0.00014109,2]
[351812655,1738797062261,-1132.22,0.00014109,2]
[351812656,1738797062271,-500.0,0.00014109,2]
[351812657,1738797062280,-500.0,0.00014109,2]
[351812658,1738797062290,-500.0,0.00014109,2]
[351812659,1738797062299,-500.0,0.00014109,2]
[351812660,1738797062309,-500.0,0.00014109,2]
[351812661,1738797062318,-151.0,0.00014109,2]
[351812662,1738797062328,-294.968774,0.00014109,2]
[351812663,1738797062339,-863.2,0.00014109,2]
[351812664,1738797062348,-151.0,0.00014109,2]
[351812665,1738797062358,-294.968774,0.00014109,2]
[351812666,1738797062369,-154.08046,0.00014109,2]
[351812667,1738797062379,-1591.88,0.00014109,2]
[351812668,1738797062389,-294.968774,0.00014109,2]
[351812669,1738797062399,-294.968774,0.00014109,2]
[351812670,1738797062409,-500.0,0.00014109,2]
[351812671,1738797062419,-500.0,0.00014109,2]
[351812672,1738797062428,-2445.51,0.00014109,2]
[351812673,1738797062439,-500.0,0.00014109,2]
[351812674,1738797062449,-500.0,0.00014109,2]
[351812675,1738797062458,-6218.52,0.00014109,2]
[351812676,1738797062468,-611.03,0.00014109,2]
[351812677,1738797062477,-500.0,0.00014109,2]
[351812678,1738797062487,-2688.83,0.00014109,2]
[351812679,1738797062496,-500.0,0.00014109,2]
[351812680,1738797062505,-1066.39,0.00014109,2]
[351812681,1738797062515,-11465.59,0.00014109,2]
[351812682,1738797062524,-2608.2,0.00014109,2]
[351812683,1738797062534,-500.0,0.00014109,2]
[351812684,1738797062543,-500.0,0.00014109,2]
[351812685,1738797062553,-500.0,0.00014109,2]
[351812686,1738797062562,-575.4,0.00014109,2]
[351812687,1738797062572,-500.0,0.00014109,2]
[351812688,1738797062586,-720.09,0.00014109,2]
[351812689,1738797062596,-500.0,0.00014109,2]
[351812690,1738797062605,-500.0,0.00014109,2]
[351812691,1738797062614,-105672.42,0.00014109,2]
[351812692,1738797062626,-500.0,0.00014109,2]
[351812693,1738797062636,-519.26,0.00014109,2]
[351812694,1738797062645,-4840.95,0.00014109,2]
[351812695,1738797062658,-500.0,0.00014109,2]
[351812696,1738797062667,-33879.81,0.00014109,2]
[351812697,1738797062677,-500.0,0.00014109,2]
[351812698,1738797062688,-559.51,0.00014109,2]
[351812699,1738797062698,-500.0,0.00014109,2]
[351812700,1738797062708,-500.0,0.00014109,2]
[351812701,1738797062717,-1513.33,0.00014109,2]
[351812702,1738797062727,-4714.57,0.00014109,2]
[351812703,1738797062737,-606.45,0.00014109,2]
[351812704,1738797062747,-2920.37,0.00014109,2]
[351812705,1738797062756,-787.1,0.00014109,2]
[351812706,1738797062765,-500.0,0.00014109,2]
[351812707,1738797062775,-1774.03,0.00014109,2]
[351812708,1738797062784,-2536.09,0.00014109,2]
[351812709,1738797062794,-1057.55,0.00014109,2]
[351812710,1738797062805,-3049.9,0.00014109,2]
[351812711,1738797062815,-592.24595938,0.00014109,2]
[351812712,1738797062824,-664.27,0.00014109,2]
[351812713,1738797062834,-921.28,0.00014109,2]
[351812714,1738797062844,-151.0,0.00014109,2]
[351812715,1738797062854,-151.0,0.00014109,2]
[351812716,1738797062864,-7093.78,0.00014109,2]
[351812717,1738797062873,-151.0,0.00014109,2]
[351812718,1738797062886,-151.0,0.00014109,2]
[351812719,1738797062896,-500.0,0.00014109,2]
[351812720,1738797062905,-511.37,0.00014109,2]
[351812721,1738797062915,-641.5,0.00014109,2]
[351812722,1738797062925,-772.62,0.00014109,2]
[351812723,1738797062936,-500.0,0.00014109,2]
[351812724,1738797062946,-906.6,0.00014109,2]
[351812725,1738797062956,-500.0,0.00014109,2]
[351812726,1738797062965,-500.0,0.00014109,2]
[351812727,1738797062973,-500.0,0.00014109,2]
[351812728,1738797062982,-3684.94,0.00014109,2]
[351812729,1738797062991,-456.61606678,0.00014109,2]
[351812730,1738797063000,-500.0,0.00014109,2]
[351812731,1738797063010,-2861.19,0.00014109,2]
[351812732,1738797063019,-620.51,0.00014109,2]
[351812733,1738797063029,-1232.53,0.00014109,2]
[351812734,1738797063038,-2745.33,0.00014109,2]
[351812735,1738797063048,-553.33571445,0.00014109,2]
[351812736,1738797063057,-500.0,0.00014109,2]
[351812737,1738797063068,-559.12827084,0.00014109,2]
[351812738,1738797063077,-500.0,0.00014109,2]
[351812739,1738797063087,-500.0,0.00014109,2]
[351812740,1738797063097,-500.0,0.00014109,2]
[351812741,1738797063108,-683.38,0.00014109,2]
[351812742,1738797063118,-500.0,0.00014109,2]
[351812743,1738797063129,-500.0,0.00014109,2]
[351812744,1738797063139,-500.0,0.00014109,2]
[351812745,1738797063150,-500.0,0.00014109,2]
[351812746,1738797063160,-2688.89,0.00014109,2]
[351812747,1738797063303,-500.0,0.00014109,2]
[351812748,1738797063314,-500.0,0.00014109,2]
[351812749,1738797063325,-500.0,0.00014109,2]
[351812750,1738797063335,-500.0,0.00014109,2]
[351812751,1738797063346,-151.0,0.00014109,2]
[351812752,1738797063356,-151.0,0.00014109,2]
[351812753,1738797063366,-1111.21,0.00014109,2]
[351812754,1738797063377,-3923.32,0.00014109,2]
[351812755,1738797063387,-500.0,0.00014109,2]
[351812756,1738797063397,-596.85,0.00014109,2]
[351812757,1738797063407,-1235.75,0.00014109,2]
[351812758,1738797063417,-500.0,0.00014109,2]
[351812759,1738797063427,-500.0,0.00014109,2]
[351812760,1738797063440,-500.0,0.00014109,2]
[351812761,1738797063450,-500.0,0.00014109,2]
[351812762,1738797063460,-686.12,0.00014109,2]
[351812763,1738797063470,-500.0,0.00014109,2]
[351812764,1738797063480,-908.43,0.00014109,2]
[351812765,1738797063491,-500.0,0.00014109,2]
[351812766,1738797063501,-500.0,0.00014109,2]
[351812767,1738797063511,-500.0,0.00014109,2]
[351812768,1738797063521,-500.0,0.00014109,2]
[351812769,1738797063530,-615.77,0.00014109,2]
[351812770,1738797063539,-918.23,0.00014109,2]
[351812771,1738797063548,-522.2,0.00014109,2]
[351812772,1738797063557,-500.0,0.00014109,2]
[351812773,1738797063566,-500.0,0.00014109,2]
[351812774,1738797063577,-500.0,0.00014109,2]
[351812775,1738797063589,-610.02,0.00014109,2]
[351812776,1738797063597,-500.0,0.00014109,2]
[351812777,1738797063607,-270.78224713,0.00014114,2]
[351812778,1738797063616,-1088.45187043,0.00014198,2]
[351812779,1738797063626,-247.0,0.00014239,2]
[351812780,1738797063636,-183.312,0.00014239,2]
[351812781,1738797063645,-153.751,0.00014239,2]
[351812782,1738797063655,-151.269,0.00014239,2]
[351812783,1738797063665,-253.059,0.00014239,2]
[351812784,1738797063675,-161.177,0.00014239,2]
[351812785,1738797063690,-263.334,0.00014239,2]
[351812786,1738797063700,-1974.0,0.00014239,2]
[351812787,1738797063710,-542.52,0.00014239,2]
[351812788,1738797063719,-2312.0,0.00014239,2]
[351812789,1738797063729,-396.0,0.00014239,2]
[351812790,1738797063739,-500.0,0.00014246,2]
[351812791,1738797063749,-500.38576222,0.00014246,2]
[351812792,1738797063760,-632.9932732,0.00014246,2]
[351812793,1738797063769,-1035.0,0.00014246,2]
[351812794,1738797063779,-500.0,0.00014246,2]
[351812795,1738797063789,-501.00701488,0.00014246,2]
[351812796,1738797063799,-500.0,0.00014246,2]
[351812797,1738797063808,-1159.39,0.00014246,2]
[351812798,1738797063818,-836.64,0.00014246,2]
[351812799,1738797063828,-557.92,0.00014246,2]
[351812800,1738797063839,-500.0,0.00014246,2]
[351812801,1738797063848,-500.0,0.00014246,2]
[351812802,1738797063858,-500.0,0.00014246,2]
[351812803,1738797063868,-949.31,0.00014246,2]
[351812804,1738797063878,-500.0,0.00014246,2]
[351812805,1738797063887,-542.68,0.00014246,2]
[351812806,1738797063897,-500.0,0.00014246,2]
[351812807,1738797063907,-1000.0,0.00014246,2]
[351812808,1738797063917,-766.31,0.00014246,2]
[351812809,1738797063926,-500.0,0.00014246,2]
[351812810,1738797063942,-572.87,0.00014246,2]
[351812811,1738797063952,-639.81,0.00014246,2]
[351812812,1738797063963,-500.0,0.00014246,2]
[351812813,1738797063972,-1322.28,0.00014246,2]
[351812814,1738797063982,-500.0,0.00014246,2]
[351812815,1738797063992,-500.0,0.00014246,2]
[351812816,1738797064001,-500.0,0.00014246,2]
[351812817,1738797064011,-188.0,0.00014246,2]
[351812818,1738797064021,-500.0,0.00014246,2]
[351812819,1738797064031,-500.0,0.00014246,2]
[351812820,1738797064041,-931.6,0.00014246,2]
[351812821,1738797064051,-500.0,0.00014246,2]
[351812822,1738797064062,-500.0,0.00014246,2]
[351812823,1738797064072,-500.0,0.00014246,2]
[351812824,1738797064082,-500.0,0.00014246,2]
[351812825,1738797064092,-500.0,0.00014246,2]
[351812826,1738797064102,-500.0,0.00014246,2]
[351812827,1738797064112,-524.25,0.00014246,2]
[351812828,1738797064123,-259.89692177,0.00014246,2]
[351812829,1738797064133,-820.76,0.00014246,2]
[351812830,1738797064144,-500.0,0.00014246,2]
[351812831,1738797064155,-500.0,0.00014246,2]
[351812832,1738797064165,-500.0,0.00014246,2]
[351812833,1738797064176,-615.48,0.00014246,2]
[351812834,1738797064190,-500.0,0.00014246,2]
[351812835,1738797064200,-1392.54,0.00014246,2]
[351812836,1738797064211,-640.53,0.00014246,2]
[351812837,1738797064221,-582.95,0.00014246,2]
[351812838,1738797064230,-1111.71,0.00014246,2]
[351812839,1738797064240,-536.56,0.00014246,2]
[351812840,1738797064250,-500.0,0.00014246,2]
[351812841,1738797064260,-500.0,0.00014246,2]
[351812842,1738797064270,-151.0,0.00014246,2]
[351812843,1738797064280,-676.22,0.00014246,2]
[351812844,1738797064289,-151.0,0.00014246,2]
[351812845,1738797064299,-516.77,0.00014246,2]
[351812846,1738797064308,-500.0,0.00014246,2]
[351812847,1738797064319,-264.865226,0.00014246,2]
[351812848,1738797064329,-500.0,0.00014246,2]
[351812849,1738797064339,-500.0,0.00014246,2]
[351812850,1738797064349,-754.18,0.00014246,2]
[351812851,1738797064359,-817.6,0.00014246,2]
[351812852,1738797064369,-500.0,0.00014246,2]
[351812853,1738797064379,-500.0,0.00014246,2]
[351812854,1738797064389,-561.21,0.00014246,2]
[351812855,1738797064399,-580.45,0.00014246,2]
[351812856,1738797064410,-1524.51,0.00014246,2]
[351812857,1738797064419,-500.0,0.00014246,2]
[351812858,1738797064429,-500.0,0.00014246,2]
[351812859,1738797064443,-500.0,0.00014246,2]
[351812860,1738797064453,-500.0,0.00014246,2]
[351812861,1738797064463,-500.0,0.00014246,2]
[351812862,1738797064474,-695.55,0.00014246,2]
[351812863,1738797064484,-928.45,0.00014246,2]
[351812864,1738797064493,-1994.48,0.00014246,2]
[351812865,1738797064504,-500.0,0.00014246,2]
[351812866,1738797064514,-500.0,0.00014246,2]
[351812867,1738797064523,-500.0,0.00014246,2]
[351812868,1738797064533,-2114.21,0.00014246,2]
[351812869,1738797064542,-500.0,0.00014246,2]
[351812870,1738797064552,-500.0,0.00014246,2]
[351812871,1738797064561,-602.59,0.00014246,2]
[351812872,1738797064571,-500.0,0.00014246,2]
[351812873,1738797064582,-508.14,0.00014246,2]
[351812874,1738797064593,-625.28,0.00014246,2]
[351812875,1738797064602,-656.55,0.00014246,2]
[351812876,1738797064611,-1718.69,0.00014246,2]
[351812877,1738797064622,-951.29,0.00014246,2]
[351812878,1738797064631,-889.74,0.00014246,2]
[351812879,1738797064640,-500.0,0.00014246,2]
[351812880,1738797064649,-500.0,0.00014246,2]
[351812881,1738797064658,-500.0,0.00014246,2]
[351812882,1738797064669,-500.0,0.00014246,2]
[351812883,1738797064678,-500.0,0.00014246,2]
[351812884,1738797064689,-1299.34,0.00014246,2]
[351812885,1738797064698,-500.0,0.00014246,2]
[351812886,1738797064708,-500.0,0.00014246,2]
[351812887,1738797064716,-276.05611955,0.00014246,2]
[351812888,1738797064726,-1226.32,0.00014246,2]
[351812889,1738797064735,-821.62,0.00014246,2]
[351812890,1738797064744,-151.0,0.00014246,2]
[351812891,1738797064753,-151.0,0.00014246,2]
[351812892,1738797064763,-500.0,0.00014246,2]
[351812893,1738797064773,-500.0,0.00014246,2]
[351812894,1738797064782,-1364.15,0.00014246,2]
[351812895,1738797064791,-1083.86,0.00014246,2]
[351812896,1738797064801,-500.0,0.00014246,2]
[351812897,1738797064810,-794.72,0.00014246,2]
[351812898,1738797064819,-500.0,0.00014246,2]
[351812899,1738797064829,-500.0,0.00014246,2]
[351812900,1738797064838,-1137.98,0.00014246,2]
[351812901,1738797064848,-500.0,0.00014246,2]
[351812902,1738797064857,-938.54,0.00014246,2]
[351812903,1738797064867,-151.0,0.00014246,2]
[351812904,1738797064876,-151.0,0.00014246,2]
[351812905,1738797064886,-151.0,0.00014246,2]
[351812906,1738797064895,-658.71,0.00014246,2]
[351812907,1738797064904,-531.19,0.00014246,2]
[351812908,1738797064914,-500.0,0.00014246,2]
[351812909,1738797064923,-3268.13,0.00014246,2]
[351812910,1738797064933,-500.0,0.00014246,2]
[351812911,1738797064943,-500.0,0.00014246,2]
[351812912,1738797064952,-500.0,0.00014246,2]
[351812913,1738797064961,-2109.0,0.00014246,2]
[351812914,1738797064971,-500.0,0.00014246,2]
[351812915,1738797064982,-500.0,0.00014246,2]
[351812916,1738797064992,-500.0,0.00014246,2]
[351812917,1738797065002,-500.0,0.00014246,2]
[351812918,1738797065012,-547.6,0.00014246,2]
[351812919,1738797065021,-3358.87,0.00014246,2]
[351812920,1738797065031,-500.0,0.00014246,2]
[351812921,1738797065040,-500.0,0.00014246,2]
[351812922,1738797065051,-500.0,0.00014246,2]
[351812923,1738797065061,-799.75,0.00014246,2]
[351812924,1738797065072,-555.67,0.00014246,2]
[351812925,1738797065081,-500.0,0.00014246,2]
[351812926,1738797065090,-937.41,0.00014246,2]
[351812927,1738797065100,-500.0,0.00014246,2]
[351812928,1738797065109,-687.13,0.00014246,2]
[351812929,1738797065119,-1781.67,0.00014246,2]
[351812930,1738797065128,-500.0,0.00014246,2]
[351812931,1738797065138,-500.0,0.00014246,2]
[351812932,1738797065147,-1561.1,0.00014246,2]
[351812933,1738797065158,-500.0,0.00014246,2]
[351812934,1738797065167,-500.0,0.00014246,2]
[351812935,1738797065177,-500.0,0.00014246,2]
[351812936,1738797065191,-851.129354,0.00014246,2]
[351812937,1738797065201,-851.129354,0.00014246,2]
[351812938,1738797065210,-851.129354,0.00014246,2]
[351812939,1738797065220,-248.75575181,0.00014246,2]
[351812940,1738797065230,-500.0,0.00014246,2]
[351812941,1738797065240,-851.129354,0.00014246,2]
[351812942,1738797065251,-851.129354,0.00014246,2]
[351812943,1738797065261,-851.129354,0.00014246,2]
[351812944,1738797065271,-500.0,0.00014246,2]
[351812945,1738797065281,-500.0,0.00014246,2]
[351812946,1738797065290,-1311.27,0.00014246,2]
[351812947,1738797065300,-500.0,0.00014246,2]
[351812948,1738797065310,-500.0,0.00014246,2]
[351812949,1738797065320,-500.0,0.00014246,2]
[351812950,1738797065329,-500.0,0.00014246,2]
[351812951,1738797065339,-272.02319971,0.00014246,2]
[351812952,1738797065349,-1382.54,0.00014246,2]
[351812953,1738797065359,-698.05,0.00014246,2]
[351812954,1738797065368,-500.0,0.00014246,2]
[351812955,1738797065378,-732.1,0.00014246,2]
[351812956,1738797065387,-500.0,0.00014246,2]
[351812957,1738797065397,-500.0,0.00014246,2]
[351812958,1738797065407,-500.0,0.00014246,2]
[351812959,1738797065417,-500.0,0.00014246,2]
[351812960,1738797065426,-500.0,0.00014246,2]
[351812961,1738797065436,-912.24,0.00014246,2]
[351812962,1738797065446,-770.08,0.00014246,2]
[351812963,1738797065456,-500.0,0.00014246,2]
[351812964,1738797065466,-1172.19,0.00014246,2]
[351812965,1738797065475,-500.0,0.00014246,2]
[351812966,1738797065485,-500.0,0.00014246,2]
[351812967,1738797065494,-671.39,0.00014246,2]
[351812968,1738797065504,-3998.17,0.00014246,2]
[351812969,1738797065513,-673.5,0.00014246,2]
[351812970,1738797065523,-914.46,0.00014246,2]
[351812971,1738797065532,-555.84,0.00014246,2]
[351812972,1738797065542,-500.0,0.00014246,2]
[351812973,1738797065551,-500.0,0.00014246,2]
[351812974,1738797065560,-2046.39,0.00014246,2]
[351812975,1738797065569,-836.22,0.00014246,2]
[351812976,1738797065581,-500.0,0.00014246,2]
[351812977,1738797065590,-500.0,0.00014246,2]
[351812978,1738797065599,-1677.9,0.00014246,2]
[351812979,1738797065609,-812.25,0.00014246,2]
[351812980,1738797065619,-720.5,0.00014246,2]
[351812981,1738797065629,-1103.25,0.00014246,2]
[351812982,1738797065638,-1767.95,0.00014246,2]
[351812983,1738797065647,-500.0,0.00014246,2]
[351812984,1738797065656,-612.16,0.00014246,2]
[351812985,1738797065666,-500.0,0.00014246,2]
[351812986,1738797065676,-500.0,0.00014246,2]
[351812987,1738797065686,-151.0,0.00014246,2]
[351812988,1738797065696,-151.0,0.00014246,2]
[351812989,1738797065705,-500.0,0.00014246,2]
[351812990,1738797065714,-522.16,0.00014246,2]
[351812991,1738797065723,-500.0,0.00014246,2]
[351812992,1738797065733,-661.44,0.00014246,2]
[351812993,1738797065742,-424.747012,0.00014246,2]
[351812994,1738797065753,-424.747012,0.00014246,2]
[351812995,1738797065763,-424.747012,0.00014246,2]
[351812996,1738797065774,-424.747012,0.00014246,2]
[351812997,1738797065784,-500.0,0.00014246,2]
[351812998,1738797065793,-500.0,0.00014246,2]
[351812999,1738797065803,-500.0,0.00014246,2]
[351813000,1738797065812,-500.0,0.00014246,2]
[351813001,1738797065822,-500.0,0.00014246,2]
[351813002,1738797065831,-926.56,0.00014246,2]
[351813003,1738797065841,-532.84,0.00014246,2]
[351813004,1738797065850,-1162.52,0.00014246,2]
[351813005,1738797065860,-500.0,0.00014246,2]
[351813006,1738797065871,-889.48,0.00014246,2]
[351813007,1738797065883,-505.39,0.00014246,2]
[351813008,1738797065893,-500.0,0.00014246,2]
[351813009,1738797065902,-707.61,0.00014246,2]
[351813010,1738797065913,-500.0,0.00014246,2]
[351813011,1738797065922,-500.0,0.00014246,2]
[351813012,1738797065933,-500.0,0.00014246,2]
[351813013,1738797065942,-902.96,0.00014246,2]
[351813014,1738797065951,-3202.02,0.00014246,2]
[351813015,1738797065962,-708.73,0.00014246,2]
[351813016,1738797065972,-500.0,0.00014246,2]
[351813017,1738797065981,-558.45700314,0.00014246,2]
[351813018,1738797065991,-500.0,0.00014246,2]
[351813019,1738797066000,-1346.35,0.00014246,2]
[351813020,1738797066010,-1043.67,0.00014246,2]
[351813021,1738797066020,-2916.69,0.00014246,2]
[351813022,1738797066029,-685.84,0.00014246,2]
[351813023,1738797066039,-500.0,0.00014246,2]
[351813024,1738797066048,-2625.97,0.00014246,2]
[351813025,1738797066058,-500.0,0.00014246,2]
[351813026,1738797066067,-6073.71,0.00014246,2]
[351813027,1738797066077,-2814.79,0.00014246,2]
[351813028,1738797066086,-419.697082,0.00014246,2]
[351813029,1738797066096,-419.697082,0.00014246,2]
[351813030,1738797066105,-224.5034362,0.00014246,2]
[351813031,1738797066115,-500.0,0.00014246,2]
[351813032,1738797066124,-1619.65,0.00014246,2]
[351813033,1738797066134,-419.697082,0.00014246,2]
[351813034,1738797066143,-419.69707464,0.00014246,2]
[351813035,1738797066153,-500.0,0.00014246,2]
[351813036,1738797066163,-500.0,0.00014246,2]
[351813037,1738797066172,-2313.67,0.00014246,2]
[351813038,1738797066183,-199.342038,0.00014246,2]
[351813039,1738797066192,-199.342038,0.00014246,2]
[351813040,1738797066203,-500.0,0.00014246,2]
[351813041,1738797066212,-4999.56,0.00014246,2]
[351813042,1738797066223,-199.342038,0.00014246,2]
[351813043,1738797066232,-199.34204,0.00014246,2]
[351813044,1738797066241,-531.8,0.00014246,2]
[351813045,1738797066251,-657.87,0.00014246,2]
[351813046,1738797066261,-500.0,0.00014246,2]
[351813047,1738797066271,-500.0,0.00014246,2]
[351813048,1738797066281,-1061.98,0.00014246,2]
[351813049,1738797066291,-644.18,0.00014246,2]
[351813050,1738797066301,-916.39,0.00014246,2]
[351813051,1738797066312,-500.0,0.00014246,2]
[351813052,1738797066321,-500.0,0.00014246,2]
[351813053,1738797066331,-7607.54,0.00014246,2]
[351813054,1738797066341,-1132.22,0.00014246,2]
[351813055,1738797066351,-2418.94,0.00014246,2]
[351813056,1738797066360,-500.0,0.00014246,2]
[351813057,1738797066370,-500.0,0.00014246,2]
[351813058,1738797066379,-500.0,0.00014246,2]
[351813059,1738797066389,-500.0,0.00014246,2]
[351813060,1738797066398,-500.0,0.00014246,2]
[351813061,1738797066407,-151.0,0.00014246,2]
[351813062,1738797066417,-294.968774,0.00014246,2]
[351813063,1738797066427,-151.0,0.00014246,2]
[351813064,1738797066439,-863.2,0.00014246,2]
[351813065,1738797066448,-294.968774,0.00014246,2]
[351813066,1738797066458,-1591.88,0.00014246,2]
[351813067,1738797066468,-294.968774,0.00014246,2]
[351813068,1738797066477,-500.0,0.00014246,2]
[351813069,1738797066487,-500.0,0.00014246,2]
[351813070,1738797066496,-2445.51,0.00014246,2]
[351813071,1738797066506,-500.0,0.00014246,2]
[351813072,1738797066515,-294.96878396,0.00014246,2]
[351813073,1738797066525,-500.0,0.00014246,2]
[351813074,1738797066534,-6218.52,0.00014246,2]
[351813075,1738797066544,-611.03,0.00014246,2]
[351813076,1738797066553,-500.0,0.00014246,2]
[351813077,1738797066563,-2688.83,0.00014246,2]
[351813078,1738797066574,-500.0,0.00014246,2]
[351813079,1738797066585,-1066.39,0.00014246,2]
[351813080,1738797066597,-11465.59,0.00014246,2]
[351813081,1738797066606,-2608.2,0.00014246,2]
[351813082,1738797066617,-222.30932214,0.00014246,2]
[351813083,1738797066627,-500.0,0.00014246,2]
[351813084,1738797066638,-500.0,0.00014246,2]
[351813085,1738797066647,-575.4,0.00014246,2]
[351813086,1738797066657,-500.0,0.00014246,2]
[351813087,1738797066668,-720.09,0.00014246,2]
[351813088,1738797066679,-500.0,0.00014246,2]
[351813089,1738797066691,-500.0,0.00014246,2]
[351813090,1738797066701,-105672.42,0.00014246,2]
[351813091,1738797066711,-500.0,0.00014246,2]
[351813092,1738797066721,-519.26,0.00014246,2]
[351813093,1738797066731,-4840.95,0.00014246,2]
[351813094,1738797066741,-222.03983535,0.00014246,2]
[351813095,1738797066751,-33879.81,0.00014246,2]
[351813096,1738797066760,-500.0,0.00014246,2]
[351813097,1738797066770,-559.51,0.00014246,2]
[351813098,1738797066779,-500.0,0.00014246,2]
[351813099,1738797066788,-500.0,0.00014246,2]
[351813100,1738797066798,-1513.33,0.00014246,2]
[351813101,1738797066807,-4714.57,0.00014246,2]
[351813102,1738797066817,-606.45,0.00014246,2]
[351813103,1738797066826,-2920.37,0.00014246,2]